[Event "Titled Tuesday Blitz March 07 Late 2023"]
[White "Bilych, Olexiy"]
[Black "Golubev, Mikhail"]
[WhiteFideId "14156504"]
[BlackFideId "14100983"]
[WhiteElo "2320"]
[BlackElo "2374"]
[Result "1-0"]
[Round "05"]
[TimeControl "180+2"]
[Date "2023.03.07"]
[WhiteClock "0:00:49"]
[BlackClock "0:00:06"]

1. d4 {[%clk 0:03:00]}  Nf6 {[%clk 0:02:59]} 2. c4 {[%clk 0:03:00]}  g6 {[%clk 0:02:59]} 3. Nc3 {[%clk 0:03:00]}  Bg7 {[%clk 0:02:59]} 4. e4 {[%clk 0:03:00]}  d6 {[%clk 0:03:00]} 5. Nge2 {[%clk 0:02:58]}  Nbd7 {[%clk 0:02:59]} 6. Ng3 {[%clk 0:02:56]}  e5 {[%clk 0:02:57]} 7. d5 {[%clk 0:02:56]}  h5 {[%clk 0:02:57]} 8. h4 {[%clk 0:02:55]}  a5 {[%clk 0:02:50]} 9. Be2 {[%clk 0:02:54]}  Nc5 {[%clk 0:02:45]} 10. Bg5 {[%clk 0:02:54]}  Bh6 {[%clk 0:02:44]} 11. Bxh6 {[%clk 0:02:41]}  Rxh6 {[%clk 0:02:43]} 12. Qd2 {[%clk 0:02:42]}  Rh8 {[%clk 0:02:41]} 13. b3 {[%clk 0:02:42]}  Kf8 {[%clk 0:02:31]} 14. Rb1 {[%clk 0:02:40]}  Kg7 {[%clk 0:02:28]} 15. Bd1 {[%clk 0:02:37]}  Bd7 {[%clk 0:01:37]} 16. a3 {[%clk 0:02:28]}  Qb8 {[%clk 0:01:24]} 17. Bc2 {[%clk 0:02:23]}  c6 {[%clk 0:00:43]} 18. b4 {[%clk 0:02:20]}  axb4 {[%clk 0:00:44]} 19. axb4 {[%clk 0:02:21]}  Na6 {[%clk 0:00:44]} 20. dxc6 {[%clk 0:02:05]}  bxc6 {[%clk 0:00:45]} 21. b5 {[%clk 0:02:04]}  cxb5 {[%clk 0:00:45]} 22. cxb5 {[%clk 0:02:05]}  Nc5 {[%clk 0:00:43]} 23. O-O {[%clk 0:02:03]}  Rc8 {[%clk 0:00:36]} 24. Rfd1 {[%clk 0:01:57]}  Qb6 {[%clk 0:00:26]} 25. Nge2 {[%clk 0:01:51]}  Ne8 {[%clk 0:00:20]} 26. Nd5 {[%clk 0:01:48]}  Qb8 {[%clk 0:00:20]} 27. b6 {[%clk 0:01:42]}  Be6 {[%clk 0:00:20]} 28. Nec3 {[%clk 0:01:41]}  Qb7 {[%clk 0:00:18]} 29. Rb2 {[%clk 0:01:38]}  Rab8 {[%clk 0:00:15]} 30. Rdb1 {[%clk 0:01:38]}  Rd8 {[%clk 0:00:14]} 31. Bd3 {[%clk 0:01:34]}  Bxd5 {[%clk 0:00:14]} 32. Nxd5 {[%clk 0:01:35]}  Nf6 {[%clk 0:00:14]} 33. Nxf6 {[%clk 0:01:15]}  Kxf6 {[%clk 0:00:14]} 34. Rb4 {[%clk 0:01:15]}  Kg7 {[%clk 0:00:13]} 35. Qe3 {[%clk 0:01:08]}  Nxd3 {[%clk 0:00:13]} 36. Qxd3 {[%clk 0:01:08]}  d5 {[%clk 0:00:13]} 37. exd5 {[%clk 0:01:08]}  Qxd5 {[%clk 0:00:13]} 38. Qe3 {[%clk 0:01:07]}  Rb7 {[%clk 0:00:13]} 39. Rb5 {[%clk 0:01:06]}  Qd6 {[%clk 0:00:12]} 40. Rxe5 {[%clk 0:01:05]}  Rdb8 {[%clk 0:00:12]} 41. Reb5 {[%clk 0:01:05]}  Kg8 {[%clk 0:00:11]} 42. g3 {[%clk 0:01:05]}  Kg7 {[%clk 0:00:11]} 43. Kg2 {[%clk 0:01:02]}  Qf6 {[%clk 0:00:11]} 44. Qf3 {[%clk 0:00:59]}  Qxf3+ {[%clk 0:00:10]} 45. Kxf3 {[%clk 0:01:00]}  Kf6 {[%clk 0:00:10]} 46. Kf4 {[%clk 0:01:00]}  Rd8 {[%clk 0:00:09]} 47. R1b4 {[%clk 0:00:58]}  Rd6 {[%clk 0:00:09]} 48. f3 {[%clk 0:00:58]}  Re6 {[%clk 0:00:09]} 49. g4 {[%clk 0:00:52]}  Kg7 {[%clk 0:00:09]} 50. gxh5 {[%clk 0:00:51]}  gxh5 {[%clk 0:00:09]} 51. Kg3 {[%clk 0:00:49]}  Rg6+ {[%clk 0:00:09]} 52. Rg5 {[%clk 0:00:49]}  Rxg5+ {[%clk 0:00:09]} 53. hxg5 {[%clk 0:00:50]}  Kg6 {[%clk 0:00:09]} 54. Kh4 {[%clk 0:00:50]}  f6 {[%clk 0:00:06]} 55. gxf6 {[%clk 0:00:50]}  Kf5 {[%clk 0:00:06]} 56. f7 {[%clk 0:00:49]} 1-0


[Site "https://www.chess.com"]

[Event "Titled Tuesday Blitz March 07 Late 2023"]
[White "Mirzoev, Azer"]
[Black "ArchibaldCerveza29"]
[WhiteFideId "13400304"]
[WhiteElo "2525"]
[BlackElo "2469"]
[Result "1/2-1/2"]
[Round "05"]
[TimeControl "180+2"]
[Date "2023.03.07"]
[WhiteClock "0:00:04"]
[BlackClock "0:00:07"]

1. c4 {[%clk 0:03:00]}  e6 {[%clk 0:02:59]} 2. Nc3 {[%clk 0:03:00]}  d5 {[%clk 0:02:59]} 3. e3 {[%clk 0:03:00]}  Nf6 {[%clk 0:02:59]} 4. Nf3 {[%clk 0:03:01]}  Be7 {[%clk 0:02:59]} 5. d4 {[%clk 0:03:01]}  O-O {[%clk 0:03:00]} 6. b3 {[%clk 0:03:01]}  b6 {[%clk 0:03:00]} 7. Bb2 {[%clk 0:03:02]}  Bb7 {[%clk 0:03:01]} 8. Bd3 {[%clk 0:03:01]}  c5 {[%clk 0:03:01]} 9. cxd5 {[%clk 0:03:01]}  Nxd5 {[%clk 0:03:01]} 10. dxc5 {[%clk 0:02:58]}  Nb4 {[%clk 0:02:52]} 11. Be2 {[%clk 0:02:57]}  Bxc5 {[%clk 0:02:46]} 12. O-O {[%clk 0:02:56]}  Nd7 {[%clk 0:02:35]} 13. a3 {[%clk 0:02:56]}  Nd5 {[%clk 0:02:28]} 14. Nxd5 {[%clk 0:02:54]}  Bxd5 {[%clk 0:02:28]} 15. b4 {[%clk 0:02:55]}  Be7 {[%clk 0:02:28]} 16. Nd4 {[%clk 0:02:42]}  Rc8 {[%clk 0:02:16]} 17. Ba6 {[%clk 0:02:40]}  Rb8 {[%clk 0:02:08]} 18. Rc1 {[%clk 0:02:39]}  Bf6 {[%clk 0:02:02]} 19. Qe2 {[%clk 0:02:36]}  Ne5 {[%clk 0:01:51]} 20. Rfd1 {[%clk 0:02:34]}  Qe7 {[%clk 0:01:43]} 21. f4 {[%clk 0:02:13]}  Ng6 {[%clk 0:01:36]} 22. Nc6 {[%clk 0:02:00]}  Bxc6 {[%clk 0:01:29]} 23. Bxf6 {[%clk 0:02:01]}  Qe8 {[%clk 0:01:03]} 24. Ba1 {[%clk 0:01:44]}  Ba4 {[%clk 0:01:02]} 25. Re1 {[%clk 0:01:35]}  b5 {[%clk 0:00:55]} 26. Qf3 {[%clk 0:01:16]}  Qd7 {[%clk 0:00:46]} 27. Bd4 {[%clk 0:01:05]}  Rfd8 {[%clk 0:00:33]} 28. Qc6 {[%clk 0:00:44]}  h5 {[%clk 0:00:22]} 29. Qxd7 {[%clk 0:00:44]}  Rxd7 {[%clk 0:00:23]} 30. g3 {[%clk 0:00:38]}  f6 {[%clk 0:00:20]} 31. Bc8 {[%clk 0:00:29]}  Re7 {[%clk 0:00:19]} 32. Rc6 {[%clk 0:00:27]}  Kf7 {[%clk 0:00:19]} 33. Rec1 {[%clk 0:00:22]}  Bb3 {[%clk 0:00:15]} 34. Rc7 {[%clk 0:00:20]}  e5 {[%clk 0:00:10]} 35. Bxa7 {[%clk 0:00:19]}  Ra8 {[%clk 0:00:10]} 36. Bb6 {[%clk 0:00:10]}  exf4 {[%clk 0:00:05]} 37. gxf4 {[%clk 0:00:09]}  Rxa3 {[%clk 0:00:05]} 38. Bf5 {[%clk 0:00:09]}  Nf8 {[%clk 0:00:02]} 39. Rxe7+ {[%clk 0:00:08]}  Kxe7 {[%clk 0:00:03]} 40. Rc7+ {[%clk 0:00:07]}  Ke8 {[%clk 0:00:01]} 41. Rxg7 {[%clk 0:00:07]}  Bf7 {[%clk 0:00:01]} 42. Bc5 {[%clk 0:00:05]}  Ra1+ {[%clk 0:00:02]} 43. Kf2 {[%clk 0:00:05]}  Rc1 {[%clk 0:00:02]} 44. Ke2 {[%clk 0:00:05]}  Rh1 {[%clk 0:00:01]} 45. h3 {[%clk 0:00:05]}  Rh2+ {[%clk 0:00:02]} 46. Kd3 {[%clk 0:00:04]}  h4 {[%clk 0:00:02]} 47. Kd4 {[%clk 0:00:04]}  Rd2+ {[%clk 0:00:02]} 48. Kc3 {[%clk 0:00:04]}  Re2 {[%clk 0:00:03]} 49. e4 {[%clk 0:00:04]}  Rh2 {[%clk 0:00:03]} 50. Bg4 {[%clk 0:00:04]}  Ra2 {[%clk 0:00:02]} 51. f5 {[%clk 0:00:04]}  Ra3+ {[%clk 0:00:02]} 52. Kd4 {[%clk 0:00:04]}  Rg3 {[%clk 0:00:03]} 53. Bxf8 {[%clk 0:00:03]}  Kxf8 {[%clk 0:00:03]} 54. Rh7 {[%clk 0:00:03]}  Kg8 {[%clk 0:00:03]} 55. Rxh4 {[%clk 0:00:03]}  Rg1 {[%clk 0:00:03]} 56. Bh5 {[%clk 0:00:03]}  Rb1 {[%clk 0:00:03]} 57. Bxf7+ {[%clk 0:00:02]}  Kxf7 {[%clk 0:00:04]} 58. Kc5 {[%clk 0:00:03]}  Rb3 {[%clk 0:00:01]} 59. Kxb5 {[%clk 0:00:03]}  Ke7 {[%clk 0:00:02]} 60. Kc5 {[%clk 0:00:03]}  Rc3+ {[%clk 0:00:02]} 61. Kb6 {[%clk 0:00:03]}  Kd6 {[%clk 0:00:02]} 62. b5 {[%clk 0:00:03]}  Rb3 {[%clk 0:00:02]} 63. Rh6 {[%clk 0:00:03]}  Ke5 {[%clk 0:00:02]} 64. Rh4 {[%clk 0:00:03]}  Rb4 {[%clk 0:00:01]} 65. Kc6 {[%clk 0:00:03]}  Rc4+ {[%clk 0:00:02]} 66. Kb7 {[%clk 0:00:03]}  Rb4 {[%clk 0:00:02]} 67. b6 {[%clk 0:00:03]}  Rb1 {[%clk 0:00:02]} 68. Rg4 {[%clk 0:00:03]}  Rb3 {[%clk 0:00:01]} 69. h4 {[%clk 0:00:03]}  Rd3 {[%clk 0:00:01]} 70. Ka7 {[%clk 0:00:02]}  Ra3+ {[%clk 0:00:01]} 71. Kb8 {[%clk 0:00:02]}  Rb3 {[%clk 0:00:02]} 72. b7 {[%clk 0:00:02]}  Rb1 {[%clk 0:00:02]} 73. h5 {[%clk 0:00:02]}  Kd4 {[%clk 0:00:02]} 74. h6 {[%clk 0:00:02]}  Kd3 {[%clk 0:00:03]} 75. Rg6 {[%clk 0:00:02]}  Kc2 {[%clk 0:00:03]} 76. Rxf6 {[%clk 0:00:03]}  Kb2 {[%clk 0:00:04]} 77. h7 {[%clk 0:00:03]}  Ka1 {[%clk 0:00:04]} 78. h8=Q {[%clk 0:00:03]}  Rb3 {[%clk 0:00:05]} 79. Rf8+ {[%clk 0:00:03]}  Ka2 {[%clk 0:00:06]} 80. Qd4 {[%clk 0:00:03]}  Ka3 {[%clk 0:00:06]} 81. Qd5 {[%clk 0:00:03]}  Ka2 {[%clk 0:00:07]} 82. Qxb3+ {[%clk 0:00:03]}  Ka1 {[%clk 0:00:07]} 83. f6 {[%clk 0:00:04]} 1/2-1/2


[Site "https://www.chess.com"]

[Event "Titled Tuesday Blitz March 07 Late 2023"]
[White "Korchmar, Vasiliy"]
[Black "Hernandez Sanchez, Elvis De La Caridad"]
[WhiteFideId "24131750"]
[BlackFideId "6400353"]
[WhiteElo "2370"]
[BlackElo "2469"]
[Result "1-0"]
[Round "05"]
[TimeControl "180+2"]
[Date "2023.03.07"]
[WhiteClock "0:00:42"]
[BlackClock "0:00:40"]

1. e4 {[%clk 0:02:57]}  c5 {[%clk 0:02:57]} 2. Nf3 {[%clk 0:02:57]}  d6 {[%clk 0:02:57]} 3. d4 {[%clk 0:02:58]}  cxd4 {[%clk 0:02:58]} 4. Nxd4 {[%clk 0:02:58]}  Nf6 {[%clk 0:02:58]} 5. Nc3 {[%clk 0:02:59]}  g6 {[%clk 0:02:59]} 6. Be3 {[%clk 0:02:59]}  Bg7 {[%clk 0:02:57]} 7. f3 {[%clk 0:02:58]}  O-O {[%clk 0:02:58]} 8. Qd2 {[%clk 0:02:59]}  Nc6 {[%clk 0:02:58]} 9. O-O-O {[%clk 0:02:59]}  d5 {[%clk 0:02:58]} 10. exd5 {[%clk 0:03:00]}  Nxd5 {[%clk 0:02:59]} 11. Nxc6 {[%clk 0:03:00]}  bxc6 {[%clk 0:03:00]} 12. Bd4 {[%clk 0:02:59]}  Nxc3 {[%clk 0:03:00]} 13. Qxc3 {[%clk 0:02:46]}  Bh6+ {[%clk 0:03:01]} 14. Be3 {[%clk 0:02:41]}  Bxe3+ {[%clk 0:03:01]} 15. Qxe3 {[%clk 0:02:42]}  Qb6 {[%clk 0:03:01]} 16. Qc3 {[%clk 0:02:29]}  Be6 {[%clk 0:02:57]} 17. h4 {[%clk 0:02:27]}  Rfd8 {[%clk 0:02:51]} 18. Bd3 {[%clk 0:02:20]}  Qd4 {[%clk 0:02:49]} 19. Qxd4 {[%clk 0:02:16]}  Rxd4 {[%clk 0:02:49]} 20. Be4 {[%clk 0:02:16]}  Rc4 {[%clk 0:02:23]} 21. b3 {[%clk 0:02:09]}  Rc5 {[%clk 0:02:23]} 22. Rd4 {[%clk 0:02:08]}  a5 {[%clk 0:02:17]} 23. Kb2 {[%clk 0:01:57]}  a4 {[%clk 0:02:11]} 24. Rxa4 {[%clk 0:01:56]}  Rxa4 {[%clk 0:02:12]} 25. bxa4 {[%clk 0:01:57]}  Rc4 {[%clk 0:02:00]} 26. a3 {[%clk 0:01:45]}  f5 {[%clk 0:01:55]} 27. Bd3 {[%clk 0:01:43]}  Rxa4 {[%clk 0:01:55]} 28. h5 {[%clk 0:01:41]}  Kg7 {[%clk 0:01:50]} 29. Re1 {[%clk 0:01:38]}  Kf6 {[%clk 0:01:48]} 30. hxg6 {[%clk 0:01:37]}  hxg6 {[%clk 0:01:48]} 31. Re3 {[%clk 0:01:25]}  Bd5 {[%clk 0:01:41]} 32. c3 {[%clk 0:01:08]}  e5 {[%clk 0:01:36]} 33. Re1 {[%clk 0:01:02]}  Ra8 {[%clk 0:01:21]} 34. c4 {[%clk 0:01:01]}  Be6 {[%clk 0:01:18]} 35. Ra1 {[%clk 0:01:01]}  c5 {[%clk 0:01:08]} 36. a4 {[%clk 0:01:00]}  Ra5 {[%clk 0:01:08]} 37. Kb3 {[%clk 0:00:57]}  Bd7 {[%clk 0:01:08]} 38. Bc2 {[%clk 0:00:54]}  g5 {[%clk 0:00:55]} 39. Kc3 {[%clk 0:00:54]}  g4 {[%clk 0:00:52]} 40. fxg4 {[%clk 0:00:55]}  fxg4 {[%clk 0:00:53]} 41. Rd1 {[%clk 0:00:48]}  Bc6 {[%clk 0:00:43]} 42. Rd6+ {[%clk 0:00:48]}  Kg5 {[%clk 0:00:40]} 43. Rxc6 {[%clk 0:00:48]}  Kf4 {[%clk 0:00:41]} 44. Kb3 {[%clk 0:00:41]}  Kg3 {[%clk 0:00:40]} 45. Be4 {[%clk 0:00:42]}  Kf4 {[%clk 0:00:40]} 46. Bd5 {[%clk 0:00:42]}  e4 {[%clk 0:00:41]} 47. Re6 {[%clk 0:00:42]}  e3 {[%clk 0:00:41]} 48. Re4+ {[%clk 0:00:42]}  Kg3 {[%clk 0:00:41]} 49. Rxe3+ {[%clk 0:00:43]}  Kf2 {[%clk 0:00:41]} 50. Re7 {[%clk 0:00:42]}  g3 {[%clk 0:00:42]} 51. Rb7 {[%clk 0:00:42]}  Kg1 {[%clk 0:00:40]} 52. Rb5 {[%clk 0:00:42]}  Ra6 {[%clk 0:00:40]} 53. Rxc5 {[%clk 0:00:42]} 1-0


[Site "https://www.chess.com"]

[Event "Titled Tuesday Blitz March 07 Late 2023"]
[White "Papasimakopoulos, Alexandros"]
[Black "Mazurkiewicz, Michal"]
[WhiteFideId "4244125"]
[BlackFideId "1124943"]
[WhiteElo "2359"]
[BlackElo "2054"]
[Result "1-0"]
[Round "05"]
[TimeControl "180+2"]
[Date "2023.03.07"]
[WhiteClock "0:00:07"]
[BlackClock "0:00:04"]

1. d4 {[%clk 0:02:56]}  Nf6 {[%clk 0:03:00]} 2. c4 {[%clk 0:02:51]}  e5 {[%clk 0:03:00]} 3. dxe5 {[%clk 0:02:50]}  Ng4 {[%clk 0:03:00]} 4. e3 {[%clk 0:02:50]}  Nxe5 {[%clk 0:02:59]} 5. Nh3 {[%clk 0:02:49]}  d5 {[%clk 0:03:00]} 6. Qxd5 {[%clk 0:02:39]}  Qe7 {[%clk 0:03:00]} 7. Nf4 {[%clk 0:02:38]}  g5 {[%clk 0:02:47]} 8. Nh5 {[%clk 0:02:24]}  Nbc6 {[%clk 0:02:37]} 9. Be2 {[%clk 0:02:06]}  Bd7 {[%clk 0:02:32]} 10. Nc3 {[%clk 0:01:36]}  O-O-O {[%clk 0:02:32]} 11. Qd1 {[%clk 0:01:36]}  Be6 {[%clk 0:01:36]} 12. Nd5 {[%clk 0:01:36]}  Qc5 {[%clk 0:01:22]} 13. O-O {[%clk 0:01:29]}  Bxd5 {[%clk 0:01:15]} 14. cxd5 {[%clk 0:01:28]}  Qxd5 {[%clk 0:01:09]} 15. Qxd5 {[%clk 0:01:25]}  Rxd5 {[%clk 0:01:10]} 16. b3 {[%clk 0:01:20]}  Be7 {[%clk 0:01:04]} 17. f4 {[%clk 0:01:08]}  Nd3 {[%clk 0:00:44]} 18. Rd1 {[%clk 0:01:05]}  Rhd8 {[%clk 0:00:44]} 19. Bf3 {[%clk 0:01:01]}  Nxc1 {[%clk 0:00:28]} 20. Rxd5 {[%clk 0:00:52]}  Ne2+ {[%clk 0:00:14]} 21. Kf2 {[%clk 0:00:50]}  Nc3 {[%clk 0:00:14]} 22. Rxd8+ {[%clk 0:00:47]}  Nxd8 {[%clk 0:00:15]} 23. Ng3 {[%clk 0:00:43]}  gxf4 {[%clk 0:00:14]} 24. exf4 {[%clk 0:00:43]}  Bc5+ {[%clk 0:00:15]} 25. Kf1 {[%clk 0:00:42]}  Ne6 {[%clk 0:00:16]} 26. Bg4 {[%clk 0:00:39]}  Kd8 {[%clk 0:00:15]} 27. Bxe6 {[%clk 0:00:39]}  fxe6 {[%clk 0:00:16]} 28. a4 {[%clk 0:00:33]}  Ke7 {[%clk 0:00:16]} 29. Rc1 {[%clk 0:00:32]}  Bb4 {[%clk 0:00:16]} 30. Ne2 {[%clk 0:00:31]}  Nd5 {[%clk 0:00:16]} 31. Kf2 {[%clk 0:00:29]}  c6 {[%clk 0:00:13]} 32. Kf3 {[%clk 0:00:29]}  Bd6 {[%clk 0:00:12]} 33. g3 {[%clk 0:00:29]}  b5 {[%clk 0:00:11]} 34. Rxc6 {[%clk 0:00:27]}  Nb4 {[%clk 0:00:10]} 35. axb5 {[%clk 0:00:14]}  Nxc6 {[%clk 0:00:10]} 36. bxc6 {[%clk 0:00:15]}  Bc5 {[%clk 0:00:09]} 37. Ke4 {[%clk 0:00:14]}  Kd6 {[%clk 0:00:10]} 38. Nd4 {[%clk 0:00:14]}  Bxd4 {[%clk 0:00:10]} 39. Kxd4 {[%clk 0:00:15]}  Kxc6 {[%clk 0:00:10]} 40. Ke5 {[%clk 0:00:15]}  Kd7 {[%clk 0:00:07]} 41. Kf6 {[%clk 0:00:15]}  Kd6 {[%clk 0:00:07]} 42. g4 {[%clk 0:00:15]}  Kd5 {[%clk 0:00:06]} 43. g5 {[%clk 0:00:07]}  a5 {[%clk 0:00:05]} 44. h4 {[%clk 0:00:07]}  Kd6 {[%clk 0:00:03]} 45. h5 {[%clk 0:00:07]}  a4 {[%clk 0:00:04]} 46. bxa4 {[%clk 0:00:07]} 1-0


[Site "https://www.chess.com"]

[Event "Titled Tuesday Blitz March 07 Late 2023"]
[White "Huber, Benedikt"]
[Black "Rytenko, Vsevolod"]
[WhiteFideId "12923583"]
[BlackFideId "14133040"]
[WhiteElo "2199"]
[BlackElo "2262"]
[Result "0-1"]
[Round "05"]
[TimeControl "180+2"]
[Date "2023.03.07"]
[WhiteClock "0:01:42"]
[BlackClock "0:02:32"]

1. d4 {[%clk 0:02:51]}  d5 {[%clk 0:03:00]} 2. Nf3 {[%clk 0:02:49]}  c6 {[%clk 0:02:59]} 3. e3 {[%clk 0:02:49]}  Nf6 {[%clk 0:03:00]} 4. Bd3 {[%clk 0:02:50]}  Bg4 {[%clk 0:03:00]} 5. h3 {[%clk 0:02:49]}  Bh5 {[%clk 0:03:00]} 6. O-O {[%clk 0:02:46]}  Nbd7 {[%clk 0:03:00]} 7. b3 {[%clk 0:02:33]}  e5 {[%clk 0:03:00]} 8. dxe5 {[%clk 0:02:32]}  Nxe5 {[%clk 0:03:01]} 9. Be2 {[%clk 0:02:33]}  Bxf3 {[%clk 0:02:56]} 10. Bxf3 {[%clk 0:02:34]}  Bd6 {[%clk 0:02:56]} 11. Bb2 {[%clk 0:02:34]}  Qe7 {[%clk 0:02:54]} 12. Nd2 {[%clk 0:02:32]}  h5 {[%clk 0:02:51]} 13. e4 {[%clk 0:02:09]}  g5 {[%clk 0:02:46]} 14. g3 {[%clk 0:01:51]}  g4 {[%clk 0:02:45]} 15. Bh1 {[%clk 0:01:50]}  h4 {[%clk 0:02:37]} 16. exd5 {[%clk 0:01:48]}  hxg3 {[%clk 0:02:35]} 17. fxg3 {[%clk 0:01:46]}  Bc5+ {[%clk 0:02:32]} 18. Kg2 {[%clk 0:01:42]}  gxh3+ {[%clk 0:02:32]} 19. Kh2 {[%clk 0:01:42]}  Nfg4+ {[%clk 0:02:32]} 0-1


[Site "https://www.chess.com"]

[Event "Titled Tuesday Blitz March 07 Late 2023"]
[White "Zhu, Jiner"]
[Black "Dzida, Kamil"]
[WhiteFideId "8608059"]
[BlackFideId "21828652"]
[WhiteElo "2384"]
[BlackElo "2139"]
[Result "1-0"]
[Round "05"]
[TimeControl "180+2"]
[Date "2023.03.07"]
[WhiteClock "0:00:10"]
[BlackClock "0:00:02"]

1. e4 {[%clk 0:03:00]}  e5 {[%clk 0:02:56]} 2. Nf3 {[%clk 0:03:00]}  Nc6 {[%clk 0:02:54]} 3. Bc4 {[%clk 0:02:59]}  Nf6 {[%clk 0:02:51]} 4. Ng5 {[%clk 0:02:52]}  Nxe4 {[%clk 0:02:46]} 5. Bxf7+ {[%clk 0:02:33]}  Ke7 {[%clk 0:02:44]} 6. d3 {[%clk 0:02:17]}  Nf6 {[%clk 0:02:33]} 7. Bb3 {[%clk 0:02:01]}  d5 {[%clk 0:02:32]} 8. f4 {[%clk 0:02:00]}  h6 {[%clk 0:02:16]} 9. fxe5 {[%clk 0:01:58]}  hxg5 {[%clk 0:02:09]} 10. exf6+ {[%clk 0:01:51]}  gxf6 {[%clk 0:02:10]} 11. O-O {[%clk 0:01:32]}  Qd6 {[%clk 0:02:01]} 12. g3 {[%clk 0:01:32]}  Bh3 {[%clk 0:01:46]} 13. Re1+ {[%clk 0:01:23]}  Kd7 {[%clk 0:01:46]} 14. Nc3 {[%clk 0:01:18]}  Ne7 {[%clk 0:01:24]} 15. Qf3 {[%clk 0:01:15]}  c6 {[%clk 0:01:20]} 16. Be3 {[%clk 0:01:11]}  Bg7 {[%clk 0:00:57]} 17. Re2 {[%clk 0:00:58]}  Nf5 {[%clk 0:00:40]} 18. Rae1 {[%clk 0:00:55]}  Rae8 {[%clk 0:00:24]} 19. Nxd5 {[%clk 0:00:41]}  cxd5 {[%clk 0:00:20]} 20. Ba4+ {[%clk 0:00:41]}  Kc8 {[%clk 0:00:17]} 21. Bxe8 {[%clk 0:00:42]}  Rxe8 {[%clk 0:00:18]} 22. g4 {[%clk 0:00:39]}  Nxe3 {[%clk 0:00:13]} 23. Rxe3 {[%clk 0:00:40]}  Rxe3 {[%clk 0:00:14]} 24. Rxe3 {[%clk 0:00:40]}  Qb6 {[%clk 0:00:13]} 25. Qxh3 {[%clk 0:00:33]}  Qxb2 {[%clk 0:00:13]} 26. Qf1 {[%clk 0:00:19]}  Qd4 {[%clk 0:00:12]} 27. Qf5+ {[%clk 0:00:19]}  Kc7 {[%clk 0:00:12]} 28. Kf2 {[%clk 0:00:19]}  Bf8 {[%clk 0:00:12]} 29. c3 {[%clk 0:00:16]}  Qb6 {[%clk 0:00:11]} 30. Qxd5 {[%clk 0:00:14]}  Qb2+ {[%clk 0:00:10]} 31. Kf3 {[%clk 0:00:14]}  Bd6 {[%clk 0:00:10]} 32. Qc4+ {[%clk 0:00:13]}  Kb6 {[%clk 0:00:10]} 33. Qb3+ {[%clk 0:00:12]}  Qxb3 {[%clk 0:00:10]} 34. axb3 {[%clk 0:00:13]}  Be5 {[%clk 0:00:10]} 35. d4 {[%clk 0:00:13]}  Bd6 {[%clk 0:00:10]} 36. Re6 {[%clk 0:00:14]}  Kc7 {[%clk 0:00:11]} 37. Rxf6 {[%clk 0:00:14]}  b5 {[%clk 0:00:11]} 38. Rg6 {[%clk 0:00:15]}  a5 {[%clk 0:00:12]} 39. Rxg5 {[%clk 0:00:15]}  Kc6 {[%clk 0:00:12]} 40. Rg8 {[%clk 0:00:13]}  a4 {[%clk 0:00:11]} 41. bxa4 {[%clk 0:00:14]}  bxa4 {[%clk 0:00:12]} 42. Ra8 {[%clk 0:00:14]}  Kb5 {[%clk 0:00:13]} 43. h4 {[%clk 0:00:14]}  Bc7 {[%clk 0:00:13]} 44. g5 {[%clk 0:00:14]}  Ba5 {[%clk 0:00:13]} 45. c4+ {[%clk 0:00:13]}  Kb4 {[%clk 0:00:13]} 46. Rb8+ {[%clk 0:00:08]}  Kc3 {[%clk 0:00:11]} 47. Rb1 {[%clk 0:00:09]}  Kc2 {[%clk 0:00:10]} 48. Ra1 {[%clk 0:00:08]}  Kb3 {[%clk 0:00:10]} 49. g6 {[%clk 0:00:09]}  Bc3 {[%clk 0:00:09]} 50. Rxa4 {[%clk 0:00:09]}  Bxd4 {[%clk 0:00:07]} 51. g7 {[%clk 0:00:10]}  Bxg7 {[%clk 0:00:05]} 52. Ra7 {[%clk 0:00:09]}  Bf6 {[%clk 0:00:02]} 53. h5 {[%clk 0:00:09]}  Kxc4 {[%clk 0:00:03]} 54. h6 {[%clk 0:00:09]}  Kd5 {[%clk 0:00:02]} 55. h7 {[%clk 0:00:10]}  Ke5 {[%clk 0:00:02]} 56. Ra8 {[%clk 0:00:10]}  Bh8 {[%clk 0:00:02]} 1-0


[Site "https://www.chess.com"]

[Event "Titled Tuesday Blitz March 07 Late 2023"]
[White "Koutlas, Nikolaos"]
[Black "Hjartarson, Johann"]
[WhiteFideId "25827138"]
[BlackFideId "2300044"]
[WhiteElo "2215"]
[BlackElo "2416"]
[Result "1-0"]
[Round "05"]
[TimeControl "180+2"]
[Date "2023.03.07"]
[WhiteClock "0:00:45"]
[BlackClock "0:01:03"]

1. c4 {[%clk 0:03:00]}  e5 {[%clk 0:02:58]} 2. Nc3 {[%clk 0:03:00]}  Nf6 {[%clk 0:02:57]} 3. Nf3 {[%clk 0:02:59]}  Nc6 {[%clk 0:02:56]} 4. g3 {[%clk 0:02:58]}  d5 {[%clk 0:02:55]} 5. cxd5 {[%clk 0:02:59]}  Nxd5 {[%clk 0:02:54]} 6. Bg2 {[%clk 0:03:00]}  Nb6 {[%clk 0:02:54]} 7. O-O {[%clk 0:03:00]}  Be7 {[%clk 0:02:54]} 8. a3 {[%clk 0:02:59]}  O-O {[%clk 0:02:53]} 9. b4 {[%clk 0:02:59]}  Be6 {[%clk 0:02:52]} 10. Bb2 {[%clk 0:02:59]}  f6 {[%clk 0:02:52]} 11. Rc1 {[%clk 0:02:58]}  a5 {[%clk 0:02:49]} 12. b5 {[%clk 0:02:35]}  Nd4 {[%clk 0:02:48]} 13. Nxd4 {[%clk 0:02:33]}  exd4 {[%clk 0:02:48]} 14. Ne4 {[%clk 0:02:33]}  Bd5 {[%clk 0:02:45]} 15. d3 {[%clk 0:02:01]}  f5 {[%clk 0:02:45]} 16. Nd2 {[%clk 0:01:30]}  Bxg2 {[%clk 0:02:37]} 17. Kxg2 {[%clk 0:01:31]}  Qd5+ {[%clk 0:02:34]} 18. Nf3 {[%clk 0:01:30]}  Qxb5 {[%clk 0:02:33]} 19. Bxd4 {[%clk 0:01:28]}  c5 {[%clk 0:02:18]} 20. Ba1 {[%clk 0:01:21]}  a4 {[%clk 0:01:58]} 21. Qc2 {[%clk 0:01:11]}  f4 {[%clk 0:01:51]} 22. Rb1 {[%clk 0:01:09]}  Qc6 {[%clk 0:01:49]} 23. Qb2 {[%clk 0:01:00]}  Rf7 {[%clk 0:01:06]} 24. Qxb6 {[%clk 0:00:56]}  fxg3 {[%clk 0:01:06]} 25. Qxc6 {[%clk 0:00:49]}  bxc6 {[%clk 0:01:05]} 26. hxg3 {[%clk 0:00:50]}  c4 {[%clk 0:01:03]} 27. Ne5 {[%clk 0:00:45]} 1-0


[Site "https://www.chess.com"]